Workbook

Sheet Inizio
E1: BOZZA PER LA PUBBLICA CONSULTAZIONE
B3: Società | C3: Ente ABC | E3: Fase 1 - Informazioni sull’oggetto di analisi
B4: Esercizio in corso | C4: 20XX | E4: Nome del conto/voce di bilancio
B5: Esercizio precedente | C5: 20XX-1 | E5: Data di copertura
B6: Data di chiusura | C6: 31/12/20XX | E6: Livello di significatività operativa assegnata alla posta
E7: Descrizione dell’approccio di campionamento
B8: Team di revisione | E8: Fase 2 - Definizione della popolazione
B9: Presidente | C9: P | E9: Ammontare complessivo della popolazione oggetto di analisi
B10: Revisore | C10: M1 | E10: (indicare valore o numero items)
B11: Revisore | C11: M2 | E11: Identificazione del report da testare
B12: Ausiliario | C12: A | E12: Unità oggetto del test
B13: Collaboratore | C13: C | E13: Verifiche svolte per accertare che la popolazione sia appropriata e completa
E14: Operazioni eventualmente non testate in quanto individualmente significative
E15: Ammontare delle operazioni fuori campione perché individualmente significative
E16: Fase 3 - Definizione dell’errore
E17: Identificazione di cosa si qualifichi come errore
E18: Fase 4 – Scelta del metodo di campionamento
E19: 4.1 Campionamento non statistico
E20: Metodo di selezione del campione
E21: Metodo di selezione delle unità da testare
E22: Numero unità testate
E23: Valore/Numero complessivo unità testate
E24: 4.2 Campionamento statistico
E25: Valore massimo tollerabile di errore
E26: Livello di riduzione del rischio cercato (basso, medio, alto)
E27: Livello % e conseguente fattore di confidenza
E28: Numero di operazioni da testare
E29: (Saldo non testato*Fattore di confidenza/significatività)
E30: Metodo di selezione del campione
E31: Metodo di selezione delle unità da testare
E32: Fase 5 – Valutazione dei risultati

Sheet Elenco residui
B1: Carta di lavoro
B2: Elenco residui attivi
B4: Preparata da: P/M1/M2 | C4: Data: _________________ | D4: Cliente | E4: =Inizio!$C$3 -> Ente ABC
B5: Rivista da: M1/M2/P | C5: Data: _________________ | D5: Data bilancio | E5: =Inizio!$C$6 -> 31/12/20XX
B6: Rivista da: M2/P/M1 | C6: Data: _________________ | D6: Data documento | E6: =TODAY() -> 2020-06-09
B8: Partitario clienti
B10: N. cap. residuo - codice bilancio | C10: Descrizione | D10: Importo
B11: 1.01.01.53.001 | C11: SALDO IMPOSTA COMUNALE PUBBLICITA' E AGGIO ANNO 2016 | D11: 3710.9
B12: 1.01.01.08.001 | C12: RECUPREO ICI AREE FABBRICABILI | D12: 0
B13: 1.01.01.08.001 000 | D13: 0
B14: 1.01.01.08.001 000 | D14: 3386.17
B15: 1.01.01.08.001 000 | D15: 54916
B16: 1.01.01.08.001 000 | D16: 51897
B17: 1.01.01.08.001 000 | D17: 31481.9
B18: 1.01.01.06.001 | D18: 127514.11
B19: 1.01.01.08.002 | D19: 97295
B20: 1.01.01.08.002 | D20: 22801
B21: 1.01.01.08.002 | D21: 25193
B22: 1.01.01.08.002 | D22: 81045
B23: 1.01.01.08.002 | D23: 103373
B24: 1.01.01.08.002 | D24: 82839
B25: 1.01.01.08.002 | D25: 53421.01
B26: 1.01.01.08.002 | D26: 50992
B27: 1.01.01.08.002 | D27: 11853
B28: 1.01.01.08.002 | D28: 19407
B29: 1.01.01.08.002 | D29: 93762
B30: 1.01.01.08.002 | D30: 369018
B31: 1.01.01.08.002 | D31: 300000
B32: 1.01.01.08.002 | D32: 138984
B33: 1.01.01.08.002 | D33: 112120
B34: 1.01.01.08.002 | D34: 147019
B35: 1.01.01.08.002 | D35: 170000
B36: 1.01.01.08.002 | D36: 140000
B37: 1.01.01.08.002 | D37: 8403
B38: 1.01.01.08.002 | D38: 5568
B39: 1.01.01.08.002 | D39: 69440
B40: 1.01.01.08.002 | D40: 21855
B41: 1.01.01.16.001 | D41: 321548.75
B42: 1.01.01.52.001 | D42: 9107.21
B43: 1.01.01.61.001 | D43: 1557548.98
B44: 1.01.01.61.001 | D44: 2200238.2
B45: 1.01.01.53.001 | D45: 5773
B46: 2.01.01.01.001 | D46: 372179.98
B47: 2.01.01.01.001 | D47: 13784.55
B48: 2.01.01.01.001 | D48: 41266.69
B49: 2.01.01.01.001 | D49: 185267.17
B50: 2.01.01.01.002 | D50: 93551.67
B51: 2.01.01.01.001 | D51: 42438.11
B52: 2.01.01.01.001 | D52: 426.08
B53: 2.01.01.02.001 | D53: 35000
B54: 2.01.01.02.001 | D54: 20370
B55: 2.01.01.02.001 | D55: 20000
B56: 2.01.01.02.001 | D56: 124689.92
B57: 2.01.01.02.001 | D57: 421351
B58: 2.01.01.02.001 | D58: 15000
B59: 2.01.01.02.001 | D59: 225888.11
B60: 2.01.01.02.001 | D60: 1000
B61: 2.01.01.02.001 | D61: 3806.64
B62: 2.01.01.02.001 | D62: 89000
B63: 2.01.01.02.001 | D63: 35400
B64: 2.01.01.02.001 | D64: 25000
B65: 2.01.01.02.001 | D65: 57192.43
B66: 2.01.01.02.001 | D66: 92535
B67: 2.01.01.02.001 | D67: 10693.79
B68: 2.01.01.02.001 | D68: 15301.5
B69: 2.01.01.02.001 | D69: 97000
B70: 2.01.01.02.001 | D70: 10000
B71: 2.01.01.02.001 | D71: 11244.1
B72: 2.01.01.02.002 | D72: 35184.65
B73: 2.01.04.01.001 | D73: 175582
B74: 2.01.01.04.001 | D74: 59531.32
B75: 2.01.01.04.001 | D75: 199442.41
B76: 3.01.02.01.032 | D76: 159.64
B77: 3.01.02.01.032 | D77: 3518.97
B78: 3.01.02.01.032 | D78: 315.82
B79: 3.01.02.01.032 | D79: 389.51
B80: 3.01.02.01.033 | D80: 1723.44
B81: 3.02.01.01.001 | D81: 104.3
B82: 3.02.01.01.001 | D82: 1043
B83: 3.02.01.01.001 | D83: 726.82
B84: 3.02.01.01.001 | D84: 971
B85: 3.02.01.01.001 | D85: 2070.5
B86: 3.02.01.01.001 | D86: 876.9
B87: 3.02.01.01.001 | D87: 1204
B88: 3.02.01.01.001 | D88: 3003.2
B89: 3.02.01.01.001 | D89: 346.4
B90: 3.02.01.01.001 | D90: 300
B91: 3.02.01.01.001 | D91: 104.3
B92: 3.02.01.01.001 | D92: 164478.14
B93: 3.02.01.01.001 | D93: 244736.62
B94: 3.02.01.01.001 | D94: 290570.12
B95: 3.02.01.01.001 | D95: 31118.21
B96: 3.01.02.01.020 | D96: 18558.3
B97: 3.01.02.01.014 | D97: 506.17
B98: 3.01.02.01.014 | D98: 712.77
B99: 3.01.02.01.999 | D99: 248873.67
B100: 3.01.02.01.999 | D100: 555800.46
B101: 3.01.02.01.999 | D101: 215123.87
B102: 3.01.02.01.999 | D102: 260
B103: 3.01.02.01.018 | D103: 250
B104: 3.01.02.01.018 | D104: 250
B105: 3.01.02.01.018 | D105: 60
B106: 3.01.02.01.018 | D106: 2020
B107: 3.01.02.01.018 | D107: 120
B108: 3.01.02.01.018 | D108: 180
B109: 3.01.02.01.018 | D109: 150
B110: 3.01.02.01.018 | D110: 650
B111: 3.01.02.01.018 | D111: 150
B112: 3.01.02.01.018 | D112: 350
B113: 3.01.02.01.018 | D113: 175
B114: 3.01.02.01.018 | D114: 480
B115: 3.01.02.01.018 | D115: 15
B116: 3.01.02.01.018 | D116: 450
B117: 3.01.02.01.018 | D117: 120
B118: 3.01.02.01.018 | D118: 120
B119: 3.01.02.01.018 | D119: 150
B120: 3.01.02.01.018 | D120: 150
B121: 3.01.02.01.018 | D121: 150
B122: 3.01.02.01.018 | D122: 150
B123: 3.01.02.01.018 | D123: 5000
B124: 3.01.02.01.018 | D124: 150
B125: 3.01.02.01.018 | D125: 325
B126: 3.01.02.01.018 | D126: 175
B127: 3.01.02.01.999 | D127: 170
B128: 3.01.02.01.013 | D128: 80
B129: 3.01.02.01.999 | D129: 600
B130: 3.01.02.01.999 | D130: 300
B131: 3.01.02.01.999 | D131: 120
B132: 3.01.02.01.999 | D132: 190
B133: 3.01.02.01.999 | D133: 300
B134: 3.01.02.01.999 | D134: 100
B135: 3.01.02.01.999 | D135: 60
B136: 3.01.02.01.999 | D136: 150
B137: 3.01.02.01.999 | D137: 150
B138: 3.01.02.01.018 | D138: 60
B139: 3.01.02.01.018 | D139: 100
B140: 3.01.02.01.018 | D140: 200
B141: 3.01.02.01.018 | D141: 1150
B142: 3.01.02.01.018 | D142: 60
B143: 3.01.02.01.018 | D143: 60
B144: 3.01.02.01.018 | D144: 350
B145: 3.01.02.01.018 | D145: 1200
B146: 3.01.02.01.018 | D146: 120
B147: 3.01.02.01.018 | D147: 100
B148: 3.01.02.01.018 | D148: 120
B149: 3.05.99.99.999 | D149: 2070.25
B150: 3.05.99.99.003 | D150: 2070.25
B151: 3.01.03.02.002 | D151: 3456
B152: 3.01.03.02.002 | D152: 750
B153: 3.01.03.02.002 | D153: 360
B154: 3.01.03.02.003 | D154: 326.74
B155: 3.01.03.02.003 | D155: 457.6
B156: 3.01.03.02.003 | D156: 43301.83
B157: 3.01.03.02.003 | D157: 1152
B158: 3.01.03.02.002 | D158: 1978.78
B159: 3.01.03.02.002 | D159: 210
B160: 3.01.03.02.002 | D160: 3456
B161: 3.01.03.02.002 | D161: 360
B162: 3.01.03.02.002 | D162: 3456
B163: 3.01.03.02.002 | D163: 750
B164: 3.01.03.01.003 | D164: 3615
B165: 3.01.03.01.003 | D165: 297
B166: 3.01.03.01.003 | D166: 624.84
B167: 3.01.03.01.003 | D167: 413
B168: 3.01.03.01.003 | D168: 421.4
B169: 3.01.03.01.003 | D169: 1500
B170: 3.01.03.01.003 | D170: 300
B171: 3.01.03.01.003 | D171: 1122
B172: 3.01.03.01.003 | D172: 840
B173: 3.01.03.01.003 | D173: 1600
B174: 3.01.03.01.003 | D174: 952.2
B175: 3.01.03.01.003 | D175: 698
B176: 3.01.03.01.003 | D176: 2711.3
B177: 3.01.03.01.003 | D177: 297
B178: 3.01.03.01.003 | D178: 318.88
B179: 3.01.03.01.003 | D179: 698
B180: 3.01.03.01.003 | D180: 3615
B181: 3.01.03.01.003 | D181: 297
B182: 3.01.03.01.003 | D182: 392.8
B183: 2.01.03.01.999 | D183: 67000
B184: 3.05.99.99.999 | D184: 3000
B185: 3.05.99.99.999 | D185: 7440
B186: 3.05.99.99.999 | D186: 2500
B187: 3.05.99.99.999 | D187: 3220
B188: 3.05.99.99.999 | D188: 3500
B189: 3.05.99.99.999 | D189: 610
B190: 3.05.99.99.999 | D190: 220
B191: 3.05.99.99.999 | D191: 1220
B192: 3.05.99.99.999 | D192: 12810
B193: 3.05.99.99.999 | D193: 3660
B194: 3.01.02.01.999 | D194: 3797.56
B195: 3.01.02.01.999 | D195: 3939.83
B196: 3.05.99.99.999 | D196: 8116.03
B197: 3.05.99.99.999 | D197: 3283.62
B198: 3.05.99.99.999 | D198: 2004
B199: 3.05.99.99.999 | D199: 334.21
B200: 3.05.99.99.999 | D200: 114.18
B201: 3.05.99.99.999 | D201: 4815.48
B202: 3.05.99.99.999 | D202: 7297.44
B203: 3.05.99.99.999 | D203: 222.1
... 116 more rows

Sheet Campionamento
B1: Carta di lavoro
B2: Campionamento dei residui attivi | I2: F 100.4
B3: Cliente | C3: =Inizio!$C$3 -> Ente ABC | H3: Preparata da: P/M1/M2 | I3: Data: _________________
B4: Data bilancio | C4: =Inizio!$C$6 -> 31/12/20XX | H4: Rivista da: M1/M2/P | I4: Data: _________________
B5: Data documento | C5: =TODAY() -> 2020-06-09 | H5: Rivista da: M2/P/M1 | I5: Data: _________________
B7: Campionamento dei residui attivi
L8: RICONCILIAZIONE DELLA SELEZIONE
B9: Saldo del conto | D9: =SUM('Elenco residui'!D11:D318) -> 28365856.38 | G9: Fattore correttivo | I9: =IF(D13="Basso",1,IF(D13="Medio",2,3)) -> 1 | L9: Valore casuale iniziale | M9: =-I11 -> 241027
B10: Significatività operativa | C10: 75% della significatività complessiva pari al 2% del parametro "entrate correnti" (30.123.106 x 2% = 602.462 significativà complessiva) (602.462 x 75% = 451.487 significatività operativa) | D10: 451847 | G10: Intervallo di selezione | I10: =D10/I9 -> 451847 | L10: Numero Items selezionati x intervallo di selezione | M10: =(I10*F17) -> 28466361
B11: Rischio intrinseco | D11: Basso | E11: =IF(D11="Alto",2,1) -> 1 | G11: Numero casuale | I11: -241027 | L11: Resto finale | M11: =I326 -> -341531.62
B12: Rischio controllo | D12: Basso | E12: =IF(D12="Basso",1,2) -> 1 | L12: Somma | M12: =SUM(M9:M11) -> 28365856.38
B13: Rischio individuazione | D13: =IF(AND(E11=1,E12=1),"Basso",IF(AND(E11=2,E12=1),"Medio",IF(AND(E11=2,E12=2),"Alto",IF(AND(E11=1,E12=2),"Medio",)))) -> Basso | J13: Basso | K13: Basso | L13: Somma popolazione residui | M13: =D9 -> 28365856.38
F17: =SUM(F19:F326) -> 63 | G17: =COUNTIF(G24:G302,"Sì") -> 42
B18: N. capitolo Bilancio | C18: Descrizione | D18: Saldo di conto | E18: Sub-Totale | F18: Selezione | G18: Selezionato | H18: Intervallo | I18: Resto
B19: 20180000001 | C19: ='Elenco residui'!C11 -> SALDO IMPOSTA COMUNALE PUBBLICITA' E AGGIO ANNO 2016 | D19: ='Elenco residui'!D11-'Elenco residui'!E11 -> 3710.9 | E19: =D19+I11 -> -237316.1 | F19: =IF(E19>0,ROUND(E19/H19+0.5,0),0) -> 0 | G19: =IF(F19=0,"No","Sì") -> No | H19: =$I$10 -> 451847 | I19: =E19-(F19*H19) -> -237316.1
B20: 20180000002 | C20: ='Elenco residui'!C12 -> RECUPREO ICI AREE FABBRICABILI | D20: ='Elenco residui'!D12-'Elenco residui'!E12 -> 0 | E20: =D20+I19 -> -237316.1 | F20: 0 | G20: =IF(F20=0,"No","Sì") -> No | H20: 451847 | I20: -237316.1
B21: 20180000003 | C21: ='Elenco residui'!C13 -> 0 | D21: ='Elenco residui'!D13-'Elenco residui'!E13 -> 0 | E21: -237316.1 | F21: 0 | G21: No | H21: 451847 | I21: -237316.1
B22: 20180000004 | C22: ='Elenco residui'!C14 -> 0 | D22: ='Elenco residui'!D14-'Elenco residui'!E14 -> 3386.17 | E22: -233929.93 | F22: 0 | G22: No | H22: 451847 | I22: -233929.93
B23: 20180000005 | C23: ='Elenco residui'!C15 -> 0 | D23: ='Elenco residui'!D15-'Elenco residui'!E15 -> 54916 | E23: -179013.93 | F23: 0 | G23: No | H23: 451847 | I23: -179013.93
B24: 20180000006 | C24: ='Elenco residui'!C16 -> 0 | D24: ='Elenco residui'!D16-'Elenco residui'!E16 -> 51897 | E24: -127116.93 | F24: 0 | G24: No | H24: 451847 | I24: -127116.93
B25: 20180000007 | C25: ='Elenco residui'!C17 -> 0 | D25: ='Elenco residui'!D17-'Elenco residui'!E17 -> 31481.9 | E25: -95635.03 | F25: 0 | G25: No | H25: 451847 | I25: -95635.03
B26: 20180000008 | C26: ='Elenco residui'!C18 -> 0 | D26: ='Elenco residui'!D18-'Elenco residui'!E18 -> 127514.11 | E26: 31879.08 | F26: 1 | G26: Sì | H26: 451847 | I26: -419967.92
B27: 20180000009 | C27: ='Elenco residui'!C19 -> 0 | D27: ='Elenco residui'!D19-'Elenco residui'!E19 -> 97295 | E27: -322672.92 | F27: 0 | G27: No | H27: 451847 | I27: -322672.92
B28: 20180000010 | C28: ='Elenco residui'!C20 -> 0 | D28: ='Elenco residui'!D20-'Elenco residui'!E20 -> 22801 | E28: -299871.92 | F28: 0 | G28: No | H28: 451847 | I28: -299871.92
B29: 20180000011 | C29: ='Elenco residui'!C21 -> 0 | D29: ='Elenco residui'!D21-'Elenco residui'!E21 -> 25193 | E29: -274678.92 | F29: 0 | G29: No | H29: 451847 | I29: -274678.92
B30: 20180000012 | C30: ='Elenco residui'!C22 -> 0 | D30: ='Elenco residui'!D22-'Elenco residui'!E22 -> 81045 | E30: -193633.92 | F30: 0 | G30: No | H30: 451847 | I30: -193633.92
B31: 20180000013 | C31: ='Elenco residui'!C23 -> 0 | D31: ='Elenco residui'!D23-'Elenco residui'!E23 -> 103373 | E31: -90260.92 | F31: 0 | G31: No | H31: 451847 | I31: -90260.92
B32: 20180000014 | C32: ='Elenco residui'!C24 -> 0 | D32: ='Elenco residui'!D24-'Elenco residui'!E24 -> 82839 | E32: -7421.92 | F32: 0 | G32: No | H32: 451847 | I32: -7421.92
B33: 20180000015 | C33: ='Elenco residui'!C25 -> 0 | D33: ='Elenco residui'!D25-'Elenco residui'!E25 -> 53421.01 | E33: 45999.09 | F33: 1 | G33: Sì | H33: 451847 | I33: -405847.91
B34: 20180000016 | C34: ='Elenco residui'!C26 -> 0 | D34: ='Elenco residui'!D26-'Elenco residui'!E26 -> 50992 | E34: -354855.91 | F34: 0 | G34: No | H34: 451847 | I34: -354855.91
B35: 20180000017 | C35: ='Elenco residui'!C27 -> 0 | D35: ='Elenco residui'!D27-'Elenco residui'!E27 -> 11853 | E35: -343002.91 | F35: 0 | G35: No | H35: 451847 | I35: -343002.91
B36: 20180000018 | C36: ='Elenco residui'!C28 -> 0 | D36: ='Elenco residui'!D28-'Elenco residui'!E28 -> 19407 | E36: -323595.91 | F36: 0 | G36: No | H36: 451847 | I36: -323595.91
B37: 20180000019 | C37: ='Elenco residui'!C29 -> 0 | D37: ='Elenco residui'!D29-'Elenco residui'!E29 -> 93762 | E37: -229833.91 | F37: 0 | G37: No | H37: 451847 | I37: -229833.91
B38: 20180000020 | C38: ='Elenco residui'!C30 -> 0 | D38: ='Elenco residui'!D30-'Elenco residui'!E30 -> 369018 | E38: 139184.09 | F38: 1 | G38: Sì | H38: 451847 | I38: -312662.91
B39: 20180000021 | C39: ='Elenco residui'!C31 -> 0 | D39: ='Elenco residui'!D31-'Elenco residui'!E31 -> 300000 | E39: -12662.91 | F39: 0 | G39: No | H39: 451847 | I39: -12662.91
B40: 20180000022 | C40: ='Elenco residui'!C32 -> 0 | D40: ='Elenco residui'!D32-'Elenco residui'!E32 -> 138984 | E40: 126321.09 | F40: 1 | G40: Sì | H40: 451847 | I40: -325525.91
B41: 20180000023 | C41: ='Elenco residui'!C33 -> 0 | D41: ='Elenco residui'!D33-'Elenco residui'!E33 -> 112120 | E41: -213405.91 | F41: 0 | G41: No | H41: 451847 | I41: -213405.91
B42: 20180000024 | C42: ='Elenco residui'!C34 -> 0 | D42: ='Elenco residui'!D34-'Elenco residui'!E34 -> 147019 | E42: -66386.91 | F42: 0 | G42: No | H42: 451847 | I42: -66386.91
B43: 20180000025 | C43: ='Elenco residui'!C35 -> 0 | D43: ='Elenco residui'!D35-'Elenco residui'!E35 -> 170000 | E43: 103613.09 | F43: 1 | G43: Sì | H43: 451847 | I43: -348233.91
B44: 20180000026 | C44: ='Elenco residui'!C36 -> 0 | D44: ='Elenco residui'!D36-'Elenco residui'!E36 -> 140000 | E44: -208233.91 | F44: 0 | G44: No | H44: 451847 | I44: -208233.91
B45: 20180000027 | C45: ='Elenco residui'!C37 -> 0 | D45: ='Elenco residui'!D37-'Elenco residui'!E37 -> 8403 | E45: -199830.91 | F45: 0 | G45: No | H45: 451847 | I45: -199830.91
B46: 20180000028 | C46: ='Elenco residui'!C38 -> 0 | D46: ='Elenco residui'!D38-'Elenco residui'!E38 -> 5568 | E46: -194262.91 | F46: 0 | G46: No | H46: 451847 | I46: -194262.91
B47: 20180000029 | C47: ='Elenco residui'!C39 -> 0 | D47: ='Elenco residui'!D39-'Elenco residui'!E39 -> 69440 | E47: -124822.91 | F47: 0 | G47: No | H47: 451847 | I47: -124822.91
B48: 20180000030 | C48: ='Elenco residui'!C40 -> 0 | D48: ='Elenco residui'!D40-'Elenco residui'!E40 -> 21855 | E48: -102967.91 | F48: 0 | G48: No | H48: 451847 | I48: -102967.91
B49: 20180000031 | C49: ='Elenco residui'!C41 -> 0 | D49: ='Elenco residui'!D41-'Elenco residui'!E41 -> 321548.75 | E49: 218580.84 | F49: 1 | G49: Sì | H49: 451847 | I49: -233266.16
B50: 20180000032 | C50: ='Elenco residui'!C42 -> 0 | D50: ='Elenco residui'!D42-'Elenco residui'!E42 -> 9107.21 | E50: -224158.95 | F50: 0 | G50: No | H50: 451847 | I50: -224158.95
B51: 20180000033 | C51: ='Elenco residui'!C43 -> 0 | D51: ='Elenco residui'!D43-'Elenco residui'!E43 -> 1557548.98 | E51: 1333390.03 | F51: 3 | G51: Sì | H51: =$I$10 -> 451847 | I51: -22150.97
B52: 20180000034 | C52: ='Elenco residui'!C44 -> 0 | D52: ='Elenco residui'!D44-'Elenco residui'!E44 -> 2200238.2 | E52: 2178087.23 | F52: 5 | G52: Sì | H52: 451847 | I52: -81147.77
B53: 20180000035 | C53: ='Elenco residui'!C45 -> 0 | D53: ='Elenco residui'!D45-'Elenco residui'!E45 -> 5773 | E53: -75374.77 | F53: 0 | G53: No | H53: 451847 | I53: -75374.77
B54: 20180000036 | C54: ='Elenco residui'!C46 -> 0 | D54: ='Elenco residui'!D46-'Elenco residui'!E46 -> 372179.98 | E54: 296805.21 | F54: 1 | G54: Sì | H54: 451847 | I54: -155041.79
B55: 20180000037 | C55: ='Elenco residui'!C47 -> 0 | D55: ='Elenco residui'!D47-'Elenco residui'!E47 -> 13784.55 | E55: -141257.24 | F55: 0 | G55: No | H55: 451847 | I55: -141257.24
B56: 20180000038 | C56: ='Elenco residui'!C48 -> 0 | D56: ='Elenco residui'!D48-'Elenco residui'!E48 -> 41266.69 | E56: -99990.55 | F56: 0 | G56: No | H56: 451847 | I56: -99990.55
B57: 20180000039 | C57: ='Elenco residui'!C49 -> 0 | D57: ='Elenco residui'!D49-'Elenco residui'!E49 -> 185267.17 | E57: 85276.62 | F57: 1 | G57: Sì | H57: 451847 | I57: -366570.38
B58: 20180000040 | C58: ='Elenco residui'!C50 -> 0 | D58: ='Elenco residui'!D50-'Elenco residui'!E50 -> 93551.67 | E58: -273018.71 | F58: 0 | G58: No | H58: 451847 | I58: -273018.71
B59: 20180000041 | C59: ='Elenco residui'!C51 -> 0 | D59: ='Elenco residui'!D51-'Elenco residui'!E51 -> 42438.11 | E59: -230580.6 | F59: 0 | G59: No | H59: 451847 | I59: -230580.6
B60: 20180000042 | C60: ='Elenco residui'!C52 -> 0 | D60: ='Elenco residui'!D52-'Elenco residui'!E52 -> 426.08 | E60: -230154.52 | F60: 0 | G60: No | H60: 451847 | I60: -230154.52
B61: 20180000043 | C61: ='Elenco residui'!C53 -> 0 | D61: ='Elenco residui'!D53-'Elenco residui'!E53 -> 35000 | E61: -195154.52 | F61: 0 | G61: No | H61: 451847 | I61: -195154.52
B62: 20180000044 | C62: ='Elenco residui'!C54 -> 0 | D62: ='Elenco residui'!D54-'Elenco residui'!E54 -> 20370 | E62: -174784.52 | F62: 0 | G62: No | H62: 451847 | I62: -174784.52
B63: 20180000045 | C63: ='Elenco residui'!C55 -> 0 | D63: ='Elenco residui'!D55-'Elenco residui'!E55 -> 20000 | E63: -154784.52 | F63: 0 | G63: No | H63: 451847 | I63: -154784.52
B64: 20180000046 | C64: ='Elenco residui'!C56 -> 0 | D64: ='Elenco residui'!D56-'Elenco residui'!E56 -> 124689.92 | E64: -30094.6 | F64: 0 | G64: No | H64: 451847 | I64: -30094.6
B65: 20180000047 | C65: ='Elenco residui'!C57 -> 0 | D65: ='Elenco residui'!D57-'Elenco residui'!E57 -> 421351 | E65: 391256.4 | F65: 1 | G65: Sì | H65: 451847 | I65: -60590.6
B66: 20180000048 | C66: ='Elenco residui'!C58 -> 0 | D66: ='Elenco residui'!D58-'Elenco residui'!E58 -> 15000 | E66: -45590.6 | F66: 0 | G66: No | H66: 451847 | I66: -45590.6
B67: 20180000049 | C67: ='Elenco residui'!C59 -> 0 | D67: ='Elenco residui'!D59-'Elenco residui'!E59 -> 225888.11 | E67: 180297.51 | F67: 1 | G67: Sì | H67: 451847 | I67: -271549.49
B68: 20180000050 | C68: ='Elenco residui'!C60 -> 0 | D68: ='Elenco residui'!D60-'Elenco residui'!E60 -> 1000 | E68: -270549.49 | F68: 0 | G68: No | H68: 451847 | I68: -270549.49
B69: 20180000051 | C69: ='Elenco residui'!C61 -> 0 | D69: ='Elenco residui'!D61-'Elenco residui'!E61 -> 3806.64 | E69: -266742.85 | F69: 0 | G69: No | H69: 451847 | I69: -266742.85
B70: 20180000052 | C70: ='Elenco residui'!C62 -> 0 | D70: ='Elenco residui'!D62-'Elenco residui'!E62 -> 89000 | E70: -177742.85 | F70: 0 | G70: No | H70: 451847 | I70: -177742.85
B71: 20180000053 | C71: ='Elenco residui'!C63 -> 0 | D71: ='Elenco residui'!D63-'Elenco residui'!E63 -> 35400 | E71: -142342.85 | F71: 0 | G71: No | H71: 451847 | I71: -142342.85
B72: 20180000054 | C72: ='Elenco residui'!C64 -> 0 | D72: ='Elenco residui'!D64-'Elenco residui'!E64 -> 25000 | E72: -117342.85 | F72: 0 | G72: No | H72: 451847 | I72: -117342.85
B73: 20180000055 | C73: ='Elenco residui'!C65 -> 0 | D73: ='Elenco residui'!D65-'Elenco residui'!E65 -> 57192.43 | E73: -60150.42 | F73: 0 | G73: No | H73: 451847 | I73: -60150.42
B74: 20180000056 | C74: ='Elenco residui'!C66 -> 0 | D74: ='Elenco residui'!D66-'Elenco residui'!E66 -> 92535 | E74: 32384.58 | F74: 1 | G74: Sì | H74: 451847 | I74: -419462.42
B75: 20180000057 | C75: ='Elenco residui'!C67 -> 0 | D75: ='Elenco residui'!D67-'Elenco residui'!E67 -> 10693.79 | E75: -408768.63 | F75: 0 | G75: No | H75: 451847 | I75: -408768.63
B76: 20180000058 | C76: ='Elenco residui'!C68 -> 0 | D76: ='Elenco residui'!D68-'Elenco residui'!E68 -> 15301.5 | E76: -393467.13 | F76: 0 | G76: No | H76: 451847 | I76: -393467.13
B77: 20180000059 | C77: ='Elenco residui'!C69 -> 0 | D77: ='Elenco residui'!D69-'Elenco residui'!E69 -> 97000 | E77: -296467.13 | F77: 0 | G77: No | H77: 451847 | I77: -296467.13
B78: 20180000060 | C78: ='Elenco residui'!C70 -> 0 | D78: ='Elenco residui'!D70-'Elenco residui'!E70 -> 10000 | E78: -286467.13 | F78: 0 | G78: No | H78: 451847 | I78: -286467.13
B79: 20180000061 | C79: ='Elenco residui'!C71 -> 0 | D79: ='Elenco residui'!D71-'Elenco residui'!E71 -> 11244.1 | E79: -275223.03 | F79: 0 | G79: No | H79: 451847 | I79: -275223.03
B80: 20180000062 | C80: ='Elenco residui'!C72 -> 0 | D80: ='Elenco residui'!D72-'Elenco residui'!E72 -> 35184.65 | E80: -240038.38 | F80: 0 | G80: No | H80: 451847 | I80: -240038.38
B81: 20180000063 | C81: ='Elenco residui'!C73 -> 0 | D81: ='Elenco residui'!D73-'Elenco residui'!E73 -> 175582 | E81: -64456.38 | F81: 0 | G81: No | H81: 451847 | I81: -64456.38
B82: 20180000064 | C82: ='Elenco residui'!C74 -> 0 | D82: ='Elenco residui'!D74-'Elenco residui'!E74 -> 59531.32 | E82: -4925.06 | F82: 0 | G82: No | H82: 451847 | I82: -4925.06
B83: 20180000065 | C83: ='Elenco residui'!C75 -> 0 | D83: ='Elenco residui'!D75-'Elenco residui'!E75 -> 199442.41 | E83: 194517.35 | F83: =IF(E83>0,ROUND(E83/H83+0.5,0),0) -> 1 | G83: Sì | H83: =$I$10 -> 451847 | I83: =E83-(F83*H83) -> -257329.65
B84: 20180000066 | C84: ='Elenco residui'!C76 -> 0 | D84: ='Elenco residui'!D76-'Elenco residui'!E76 -> 159.64 | E84: =D84+I83 -> -257170.01 | F84: 0 | G84: =IF(F84=0,"No","Sì") -> No | H84: 451847 | I84: -257170.01
B85: 20180000067 | C85: ='Elenco residui'!C77 -> 0 | D85: ='Elenco residui'!D77-'Elenco residui'!E77 -> 3518.97 | E85: -253651.04 | F85: 0 | G85: No | H85: 451847 | I85: -253651.04
B86: 20180000068 | C86: ='Elenco residui'!C78 -> 0 | D86: ='Elenco residui'!D78-'Elenco residui'!E78 -> 315.82 | E86: -253335.22 | F86: 0 | G86: No | H86: 451847 | I86: -253335.22
B87: 20180000069 | C87: ='Elenco residui'!C79 -> 0 | D87: ='Elenco residui'!D79-'Elenco residui'!E79 -> 389.51 | E87: -252945.71 | F87: 0 | G87: No | H87: 451847 | I87: -252945.71
B88: 20180000070 | C88: ='Elenco residui'!C80 -> 0 | D88: ='Elenco residui'!D80-'Elenco residui'!E80 -> 1723.44 | E88: -251222.27 | F88: 0 | G88: No | H88: 451847 | I88: -251222.27
B89: 20180000071 | C89: ='Elenco residui'!C81 -> 0 | D89: ='Elenco residui'!D81-'Elenco residui'!E81 -> 104.3 | E89: -251117.97 | F89: 0 | G89: No | H89: 451847 | I89: -251117.97
B90: 20180000072 | C90: ='Elenco residui'!C82 -> 0 | D90: ='Elenco residui'!D82-'Elenco residui'!E82 -> 1043 | E90: -250074.97 | F90: 0 | G90: No | H90: 451847 | I90: -250074.97
B91: 20180000073 | C91: ='Elenco residui'!C83 -> 0 | D91: ='Elenco residui'!D83-'Elenco residui'!E83 -> 726.82 | E91: -249348.15 | F91: 0 | G91: No | H91: 451847 | I91: -249348.15
B92: 20180000074 | C92: ='Elenco residui'!C84 -> 0 | D92: ='Elenco residui'!D84-'Elenco residui'!E84 -> 971 | E92: -248377.15 | F92: 0 | G92: No | H92: 451847 | I92: -248377.15
B93: 20180000075 | C93: ='Elenco residui'!C85 -> 0 | D93: ='Elenco residui'!D85-'Elenco residui'!E85 -> 2070.5 | E93: -246306.65 | F93: 0 | G93: No | H93: 451847 | I93: -246306.65
B94: 20180000076 | C94: ='Elenco residui'!C86 -> 0 | D94: ='Elenco residui'!D86-'Elenco residui'!E86 -> 876.9 | E94: -245429.75 | F94: 0 | G94: No | H94: 451847 | I94: -245429.75
B95: 20180000077 | C95: ='Elenco residui'!C87 -> 0 | D95: ='Elenco residui'!D87-'Elenco residui'!E87 -> 1204 | E95: -244225.75 | F95: 0 | G95: No | H95: 451847 | I95: -244225.75
B96: 20180000078 | C96: ='Elenco residui'!C88 -> 0 | D96: ='Elenco residui'!D88-'Elenco residui'!E88 -> 3003.2 | E96: -241222.55 | F96: 0 | G96: No | H96: 451847 | I96: -241222.55
B97: 20180000079 | C97: ='Elenco residui'!C89 -> 0 | D97: ='Elenco residui'!D89-'Elenco residui'!E89 -> 346.4 | E97: -240876.15 | F97: 0 | G97: No | H97: 451847 | I97: -240876.15
B98: 20180000080 | C98: ='Elenco residui'!C90 -> 0 | D98: ='Elenco residui'!D90-'Elenco residui'!E90 -> 300 | E98: -240576.15 | F98: 0 | G98: No | H98: 451847 | I98: -240576.15
B99: 20180000081 | C99: ='Elenco residui'!C91 -> 0 | D99: ='Elenco residui'!D91-'Elenco residui'!E91 -> 104.3 | E99: -240471.85 | F99: 0 | G99: No | H99: 451847 | I99: -240471.85
B100: 20180000082 | C100: ='Elenco residui'!C92 -> 0 | D100: ='Elenco residui'!D92-'Elenco residui'!E92 -> 164478.14 | E100: -75993.71 | F100: 0 | G100: No | H100: 451847 | I100: -75993.71
B101: 20180000083 | C101: ='Elenco residui'!C93 -> 0 | D101: ='Elenco residui'!D93-'Elenco residui'!E93 -> 244736.62 | E101: 168742.91 | F101: 1 | G101: Sì | H101: 451847 | I101: -283104.09
B102: 20180000084 | C102: ='Elenco residui'!C94 -> 0 | D102: ='Elenco residui'!D94-'Elenco residui'!E94 -> 290570.12 | E102: 7466.03 | F102: 1 | G102: Sì | H102: 451847 | I102: -444380.97
B103: 20180000085 | C103: ='Elenco residui'!C95 -> 0 | D103: ='Elenco residui'!D95-'Elenco residui'!E95 -> 31118.21 | E103: -413262.76 | F103: 0 | G103: No | H103: 451847 | I103: -413262.76
B104: 20180000086 | C104: ='Elenco residui'!C96 -> 0 | D104: ='Elenco residui'!D96-'Elenco residui'!E96 -> 18558.3 | E104: -394704.46 | F104: 0 | G104: No | H104: 451847 | I104: -394704.46
B105: 20180000087 | C105: ='Elenco residui'!C97 -> 0 | D105: ='Elenco residui'!D97-'Elenco residui'!E97 -> 506.17 | E105: -394198.29 | F105: 0 | G105: No | H105: 451847 | I105: -394198.29
B106: 20180000088 | C106: ='Elenco residui'!C98 -> 0 | D106: ='Elenco residui'!D98-'Elenco residui'!E98 -> 712.77 | E106: -393485.52 | F106: 0 | G106: No | H106: 451847 | I106: -393485.52
B107: 20180000089 | C107: ='Elenco residui'!C99 -> 0 | D107: ='Elenco residui'!D99-'Elenco residui'!E99 -> 248873.67 | E107: -144611.85 | F107: 0 | G107: No | H107: 451847 | I107: -144611.85
B108: 20180000090 | C108: ='Elenco residui'!C100 -> 0 | D108: ='Elenco residui'!D100-'Elenco residui'!E100 -> 555800.46 | E108: 411188.61 | F108: 1 | G108: Sì | H108: 451847 | I108: -40658.39
B109: 20180000091 | C109: ='Elenco residui'!C101 -> 0 | D109: ='Elenco residui'!D101-'Elenco residui'!E101 -> 215123.87 | E109: 174465.48 | F109: 1 | G109: Sì | H109: 451847 | I109: -277381.52
B110: 20180000092 | C110: ='Elenco residui'!C102 -> 0 | D110: ='Elenco residui'!D102-'Elenco residui'!E102 -> 260 | E110: -277121.52 | F110: 0 | G110: No | H110: 451847 | I110: -277121.52
B111: 20180000093 | C111: ='Elenco residui'!C103 -> 0 | D111: ='Elenco residui'!D103-'Elenco residui'!E103 -> 250 | E111: -276871.52 | F111: 0 | G111: No | H111: 451847 | I111: -276871.52
B112: 20180000094 | C112: ='Elenco residui'!C104 -> 0 | D112: ='Elenco residui'!D104-'Elenco residui'!E104 -> 250 | E112: -276621.52 | F112: 0 | G112: No | H112: 451847 | I112: -276621.52
B113: 20180000095 | C113: ='Elenco residui'!C105 -> 0 | D113: ='Elenco residui'!D105-'Elenco residui'!E105 -> 60 | E113: -276561.52 | F113: 0 | G113: No | H113: 451847 | I113: -276561.52
B114: 20180000096 | C114: ='Elenco residui'!C106 -> 0 | D114: ='Elenco residui'!D106-'Elenco residui'!E106 -> 2020 | E114: -274541.52 | F114: 0 | G114: No | H114: 451847 | I114: -274541.52
B115: 20180000097 | C115: ='Elenco residui'!C107 -> 0 | D115: ='Elenco residui'!D107-'Elenco residui'!E107 -> 120 | E115: -274421.52 | F115: 0 | G115: No | H115: 451847 | I115: -274421.52
B116: 20180000098 | C116: ='Elenco residui'!C108 -> 0 | D116: ='Elenco residui'!D108-'Elenco residui'!E108 -> 180 | E116: -274241.52 | F116: 0 | G116: No | H116: 451847 | I116: -274241.52
B117: 20180000099 | C117: ='Elenco residui'!C109 -> 0 | D117: ='Elenco residui'!D109-'Elenco residui'!E109 -> 150 | E117: -274091.52 | F117: 0 | G117: No | H117: 451847 | I117: -274091.52
B118: 20180000100 | C118: ='Elenco residui'!C110 -> 0 | D118: ='Elenco residui'!D110-'Elenco residui'!E110 -> 650 | E118: -273441.52 | F118: 0 | G118: No | H118: =$I$10 -> 451847 | I118: -273441.52
B119: 20180000101 | C119: ='Elenco residui'!C111 -> 0 | D119: ='Elenco residui'!D111-'Elenco residui'!E111 -> 150 | E119: -273291.52 | F119: 0 | G119: =IF(F119=0,"No","Sì") -> No | H119: 451847 | I119: -273291.52
B120: 20180000102 | C120: ='Elenco residui'!C112 -> 0 | D120: ='Elenco residui'!D112-'Elenco residui'!E112 -> 350 | E120: -272941.52 | F120: 0 | G120: No | H120: 451847 | I120: -272941.52
B121: 20180000103 | C121: ='Elenco residui'!C113 -> 0 | D121: ='Elenco residui'!D113-'Elenco residui'!E113 -> 175 | E121: -272766.52 | F121: 0 | G121: No | H121: 451847 | I121: -272766.52 | M121: =D118 -> 650
B122: 20180000104 | C122: ='Elenco residui'!C114 -> 0 | D122: ='Elenco residui'!D114-'Elenco residui'!E114 -> 480 | E122: -272286.52 | F122: 0 | G122: No | H122: 451847 | I122: -272286.52 | M122: =M121-#REF! -> 
B123: 20180000105 | C123: ='Elenco residui'!C115 -> 0 | D123: ='Elenco residui'!D115-'Elenco residui'!E115 -> 15 | E123: -272271.52 | F123: 0 | G123: No | H123: 451847 | I123: -272271.52
B124: 20180000106 | C124: ='Elenco residui'!C116 -> 0 | D124: ='Elenco residui'!D116-'Elenco residui'!E116 -> 450 | E124: -271821.52 | F124: 0 | G124: No | H124: 451847 | I124: -271821.52
B125: 20180000107 | C125: ='Elenco residui'!C117 -> 0 | D125: ='Elenco residui'!D117-'Elenco residui'!E117 -> 120 | E125: -271701.52 | F125: 0 | G125: No | H125: 451847 | I125: -271701.52
B126: 20180000108 | C126: ='Elenco residui'!C118 -> 0 | D126: ='Elenco residui'!D118-'Elenco residui'!E118 -> 120 | E126: -271581.52 | F126: 0 | G126: No | H126: 451847 | I126: -271581.52
B127: 20180000109 | C127: ='Elenco residui'!C119 -> 0 | D127: ='Elenco residui'!D119-'Elenco residui'!E119 -> 150 | E127: -271431.52 | F127: 0 | G127: No | H127: 451847 | I127: -271431.52
B128: 20180000110 | C128: ='Elenco residui'!C120 -> 0 | D128: ='Elenco residui'!D120-'Elenco residui'!E120 -> 150 | E128: -271281.52 | F128: 0 | G128: No | H128: 451847 | I128: -271281.52
B129: 20180000111 | C129: ='Elenco residui'!C121 -> 0 | D129: ='Elenco residui'!D121-'Elenco residui'!E121 -> 150 | E129: -271131.52 | F129: 0 | G129: No | H129: 451847 | I129: -271131.52
B130: 20180000112 | C130: ='Elenco residui'!C122 -> 0 | D130: ='Elenco residui'!D122-'Elenco residui'!E122 -> 150 | E130: -270981.52 | F130: 0 | G130: No | H130: 451847 | I130: -270981.52
B131: 20180000113 | C131: ='Elenco residui'!C123 -> 0 | D131: ='Elenco residui'!D123-'Elenco residui'!E123 -> 5000 | E131: -265981.52 | F131: 0 | G131: No | H131: 451847 | I131: -265981.52
B132: 20180000114 | C132: ='Elenco residui'!C124 -> 0 | D132: ='Elenco residui'!D124-'Elenco residui'!E124 -> 150 | E132: -265831.52 | F132: 0 | G132: No | H132: 451847 | I132: -265831.52
B133: 20180000115 | C133: ='Elenco residui'!C125 -> 0 | D133: ='Elenco residui'!D125-'Elenco residui'!E125 -> 325 | E133: -265506.52 | F133: 0 | G133: No | H133: 451847 | I133: -265506.52
B134: 20180000116 | C134: ='Elenco residui'!C126 -> 0 | D134: ='Elenco residui'!D126-'Elenco residui'!E126 -> 175 | E134: -265331.52 | F134: 0 | G134: No | H134: 451847 | I134: -265331.52
B135: 20180000117 | C135: ='Elenco residui'!C127 -> 0 | D135: ='Elenco residui'!D127-'Elenco residui'!E127 -> 170 | E135: -265161.52 | F135: 0 | G135: No | H135: 451847 | I135: -265161.52
B136: 20180000118 | C136: ='Elenco residui'!C128 -> 0 | D136: ='Elenco residui'!D128-'Elenco residui'!E128 -> 80 | E136: -265081.52 | F136: 0 | G136: No | H136: 451847 | I136: -265081.52
B137: 20180000119 | C137: ='Elenco residui'!C129 -> 0 | D137: ='Elenco residui'!D129-'Elenco residui'!E129 -> 600 | E137: -264481.52 | F137: 0 | G137: No | H137: 451847 | I137: -264481.52
B138: 20180000120 | C138: ='Elenco residui'!C130 -> 0 | D138: ='Elenco residui'!D130-'Elenco residui'!E130 -> 300 | E138: -264181.52 | F138: 0 | G138: No | H138: 451847 | I138: -264181.52
B139: 20180000121 | C139: ='Elenco residui'!C131 -> 0 | D139: ='Elenco residui'!D131-'Elenco residui'!E131 -> 120 | E139: -264061.52 | F139: 0 | G139: No | H139: 451847 | I139: -264061.52
B140: 20180000122 | C140: ='Elenco residui'!C132 -> 0 | D140: ='Elenco residui'!D132-'Elenco residui'!E132 -> 190 | E140: -263871.52 | F140: 0 | G140: No | H140: 451847 | I140: -263871.52
B141: 20180000123 | C141: ='Elenco residui'!C133 -> 0 | D141: ='Elenco residui'!D133-'Elenco residui'!E133 -> 300 | E141: -263571.52 | F141: 0 | G141: No | H141: 451847 | I141: -263571.52
B142: 20180000124 | C142: ='Elenco residui'!C134 -> 0 | D142: ='Elenco residui'!D134-'Elenco residui'!E134 -> 100 | E142: -263471.52 | F142: 0 | G142: No | H142: 451847 | I142: -263471.52
B143: 20180000125 | C143: ='Elenco residui'!C135 -> 0 | D143: ='Elenco residui'!D135-'Elenco residui'!E135 -> 60 | E143: -263411.52 | F143: 0 | G143: No | H143: 451847 | I143: -263411.52
B144: 20180000126 | C144: ='Elenco residui'!C136 -> 0 | D144: ='Elenco residui'!D136-'Elenco residui'!E136 -> 150 | E144: -263261.52 | F144: 0 | G144: No | H144: 451847 | I144: -263261.52
B145: 20180000127 | C145: ='Elenco residui'!C137 -> 0 | D145: ='Elenco residui'!D137-'Elenco residui'!E137 -> 150 | E145: -263111.52 | F145: 0 | G145: No | H145: 451847 | I145: -263111.52
B146: 20180000128 | C146: ='Elenco residui'!C138 -> 0 | D146: ='Elenco residui'!D138-'Elenco residui'!E138 -> 60 | E146: -263051.52 | F146: 0 | G146: No | H146: 451847 | I146: -263051.52
B147: 20180000129 | C147: ='Elenco residui'!C139 -> 0 | D147: ='Elenco residui'!D139-'Elenco residui'!E139 -> 100 | E147: -262951.52 | F147: =IF(E147>0,ROUND(E147/H147+0.5,0),0) -> 0 | G147: No | H147: 451847 | I147: =E147-(F147*H147) -> -262951.52
B148: 20180000130 | C148: ='Elenco residui'!C140 -> 0 | D148: ='Elenco residui'!D140-'Elenco residui'!E140 -> 200 | E148: =D148+I147 -> -262751.52 | F148: 0 | G148: No | H148: 451847 | I148: -262751.52
B149: 20180000131 | C149: ='Elenco residui'!C141 -> 0 | D149: ='Elenco residui'!D141-'Elenco residui'!E141 -> 1150 | E149: -261601.52 | F149: 0 | G149: No | H149: 451847 | I149: -261601.52
B150: 20180000132 | C150: ='Elenco residui'!C142 -> 0 | D150: ='Elenco residui'!D142-'Elenco residui'!E142 -> 60 | E150: -261541.52 | F150: 0 | G150: No | H150: 451847 | I150: -261541.52
B151: 20180000133 | C151: ='Elenco residui'!C143 -> 0 | D151: ='Elenco residui'!D143-'Elenco residui'!E143 -> 60 | E151: -261481.52 | F151: 0 | G151: No | H151: 451847 | I151: -261481.52
B152: 20180000134 | C152: ='Elenco residui'!C144 -> 0 | D152: ='Elenco residui'!D144-'Elenco residui'!E144 -> 350 | E152: -261131.52 | F152: 0 | G152: No | H152: 451847 | I152: -261131.52
B153: 20180000135 | C153: ='Elenco residui'!C145 -> 0 | D153: ='Elenco residui'!D145-'Elenco residui'!E145 -> 1200 | E153: -259931.52 | F153: 0 | G153: No | H153: 451847 | I153: -259931.52
B154: 20180000136 | C154: ='Elenco residui'!C146 -> 0 | D154: ='Elenco residui'!D146-'Elenco residui'!E146 -> 120 | E154: -259811.52 | F154: 0 | G154: No | H154: 451847 | I154: -259811.52
B155: 20180000137 | C155: ='Elenco residui'!C147 -> 0 | D155: ='Elenco residui'!D147-'Elenco residui'!E147 -> 100 | E155: -259711.52 | F155: 0 | G155: No | H155: 451847 | I155: -259711.52
B156: 20180000138 | C156: ='Elenco residui'!C148 -> 0 | D156: ='Elenco residui'!D148-'Elenco residui'!E148 -> 120 | E156: -259591.52 | F156: 0 | G156: No | H156: 451847 | I156: -259591.52
B157: 20180000139 | C157: ='Elenco residui'!C149 -> 0 | D157: ='Elenco residui'!D149-'Elenco residui'!E149 -> 2070.25 | E157: -257521.27 | F157: 0 | G157: No | H157: 451847 | I157: -257521.27
B158: 20180000140 | C158: ='Elenco residui'!C150 -> 0 | D158: ='Elenco residui'!D150-'Elenco residui'!E150 -> 2070.25 | E158: -255451.02 | F158: 0 | G158: No | H158: 451847 | I158: -255451.02
B159: 20180000141 | C159: ='Elenco residui'!C151 -> 0 | D159: ='Elenco residui'!D151-'Elenco residui'!E151 -> 3456 | E159: -251995.02 | F159: 0 | G159: No | H159: 451847 | I159: -251995.02
B160: 20180000142 | C160: ='Elenco residui'!C152 -> 0 | D160: ='Elenco residui'!D152-'Elenco residui'!E152 -> 750 | E160: -251245.02 | F160: 0 | G160: No | H160: 451847 | I160: -251245.02
B161: 20180000143 | C161: ='Elenco residui'!C153 -> 0 | D161: ='Elenco residui'!D153-'Elenco residui'!E153 -> 360 | E161: -250885.02 | F161: 0 | G161: No | H161: 451847 | I161: -250885.02
B162: 20180000144 | C162: ='Elenco residui'!C154 -> 0 | D162: ='Elenco residui'!D154-'Elenco residui'!E154 -> 326.74 | E162: -250558.28 | F162: 0 | G162: No | H162: 451847 | I162: -250558.28
B163: 20180000145 | C163: ='Elenco residui'!C155 -> 0 | D163: ='Elenco residui'!D155-'Elenco residui'!E155 -> 457.6 | E163: -250100.68 | F163: 0 | G163: No | H163: 451847 | I163: -250100.68
B164: 20180000146 | C164: ='Elenco residui'!C156 -> 0 | D164: ='Elenco residui'!D156-'Elenco residui'!E156 -> 43301.83 | E164: -206798.85 | F164: 0 | G164: No | H164: 451847 | I164: -206798.85
B165: 20180000147 | C165: ='Elenco residui'!C157 -> 0 | D165: ='Elenco residui'!D157-'Elenco residui'!E157 -> 1152 | E165: -205646.85 | F165: 0 | G165: No | H165: 451847 | I165: -205646.85
B166: 20180000148 | C166: ='Elenco residui'!C158 -> 0 | D166: ='Elenco residui'!D158-'Elenco residui'!E158 -> 1978.78 | E166: -203668.07 | F166: 0 | G166: No | H166: 451847 | I166: -203668.07
B167: 20180000149 | C167: ='Elenco residui'!C159 -> 0 | D167: ='Elenco residui'!D159-'Elenco residui'!E159 -> 210 | E167: -203458.07 | F167: 0 | G167: No | H167: 451847 | I167: -203458.07
B168: 20180000150 | C168: ='Elenco residui'!C160 -> 0 | D168: ='Elenco residui'!D160-'Elenco residui'!E160 -> 3456 | E168: -200002.07 | F168: 0 | G168: No | H168: 451847 | I168: -200002.07
B169: 20180000151 | C169: ='Elenco residui'!C161 -> 0 | D169: ='Elenco residui'!D161-'Elenco residui'!E161 -> 360 | E169: -199642.07 | F169: 0 | G169: No | H169: 451847 | I169: -199642.07
B170: 20180000152 | C170: ='Elenco residui'!C162 -> 0 | D170: ='Elenco residui'!D162-'Elenco residui'!E162 -> 3456 | E170: -196186.07 | F170: 0 | G170: No | H170: 451847 | I170: -196186.07
B171: 20180000153 | C171: ='Elenco residui'!C163 -> 0 | D171: ='Elenco residui'!D163-'Elenco residui'!E163 -> 750 | E171: -195436.07 | F171: 0 | G171: No | H171: 451847 | I171: -195436.07
B172: 20180000154 | C172: ='Elenco residui'!C164 -> 0 | D172: ='Elenco residui'!D164-'Elenco residui'!E164 -> 3615 | E172: -191821.07 | F172: 0 | G172: No | H172: 451847 | I172: -191821.07
B173: 20180000155 | C173: ='Elenco residui'!C165 -> 0 | D173: ='Elenco residui'!D165-'Elenco residui'!E165 -> 297 | E173: -191524.07 | F173: 0 | G173: No | H173: 451847 | I173: -191524.07
B174: 20180000156 | C174: ='Elenco residui'!C166 -> 0 | D174: ='Elenco residui'!D166-'Elenco residui'!E166 -> 624.84 | E174: -190899.23 | F174: 0 | G174: No | H174: 451847 | I174: -190899.23
B175: 20180000157 | C175: ='Elenco residui'!C167 -> 0 | D175: ='Elenco residui'!D167-'Elenco residui'!E167 -> 413 | E175: -190486.23 | F175: 0 | G175: No | H175: 451847 | I175: -190486.23
B176: 20180000158 | C176: ='Elenco residui'!C168 -> 0 | D176: ='Elenco residui'!D168-'Elenco residui'!E168 -> 421.4 | E176: -190064.83 | F176: 0 | G176: No | H176: 451847 | I176: -190064.83
B177: 20180000159 | C177: ='Elenco residui'!C169 -> 0 | D177: ='Elenco residui'!D169-'Elenco residui'!E169 -> 1500 | E177: -188564.83 | F177: 0 | G177: No | H177: 451847 | I177: -188564.83
B178: 20180000160 | C178: ='Elenco residui'!C170 -> 0 | D178: ='Elenco residui'!D170-'Elenco residui'!E170 -> 300 | E178: -188264.83 | F178: 0 | G178: No | H178: 451847 | I178: -188264.83
B179: 20180000161 | C179: ='Elenco residui'!C171 -> 0 | D179: ='Elenco residui'!D171-'Elenco residui'!E171 -> 1122 | E179: -187142.83 | F179: 0 | G179: No | H179: 451847 | I179: -187142.83
B180: 20180000162 | C180: ='Elenco residui'!C172 -> 0 | D180: ='Elenco residui'!D172-'Elenco residui'!E172 -> 840 | E180: -186302.83 | F180: 0 | G180: No | H180: 451847 | I180: -186302.83
B181: 20180000163 | C181: ='Elenco residui'!C173 -> 0 | D181: ='Elenco residui'!D173-'Elenco residui'!E173 -> 1600 | E181: -184702.83 | F181: 0 | G181: No | H181: 451847 | I181: -184702.83
B182: 20180000164 | C182: ='Elenco residui'!C174 -> 0 | D182: ='Elenco residui'!D174-'Elenco residui'!E174 -> 952.2 | E182: -183750.63 | F182: 0 | G182: No | H182: =$I$10 -> 451847 | I182: -183750.63
B183: 20180000165 | C183: ='Elenco residui'!C175 -> 0 | D183: ='Elenco residui'!D175-'Elenco residui'!E175 -> 698 | E183: -183052.63 | F183: 0 | G183: =IF(F183=0,"No","Sì") -> No | H183: 451847 | I183: -183052.63
B184: 20180000166 | C184: ='Elenco residui'!C176 -> 0 | D184: ='Elenco residui'!D176-'Elenco residui'!E176 -> 2711.3 | E184: -180341.33 | F184: 0 | G184: No | H184: 451847 | I184: -180341.33
B185: 20180000167 | C185: ='Elenco residui'!C177 -> 0 | D185: ='Elenco residui'!D177-'Elenco residui'!E177 -> 297 | E185: -180044.33 | F185: 0 | G185: No | H185: 451847 | I185: -180044.33
B186: 20180000168 | C186: ='Elenco residui'!C178 -> 0 | D186: ='Elenco residui'!D178-'Elenco residui'!E178 -> 318.88 | E186: -179725.45 | F186: 0 | G186: No | H186: 451847 | I186: -179725.45
B187: 20180000169 | C187: ='Elenco residui'!C179 -> 0 | D187: ='Elenco residui'!D179-'Elenco residui'!E179 -> 698 | E187: -179027.45 | F187: 0 | G187: No | H187: 451847 | I187: -179027.45
B188: 20180000170 | C188: ='Elenco residui'!C180 -> 0 | D188: ='Elenco residui'!D180-'Elenco residui'!E180 -> 3615 | E188: -175412.45 | F188: 0 | G188: No | H188: 451847 | I188: -175412.45
B189: 20180000171 | C189: ='Elenco residui'!C181 -> 0 | D189: ='Elenco residui'!D181-'Elenco residui'!E181 -> 297 | E189: -175115.45 | F189: 0 | G189: No | H189: 451847 | I189: -175115.45
B190: 20180000172 | C190: ='Elenco residui'!C182 -> 0 | D190: ='Elenco residui'!D182-'Elenco residui'!E182 -> 392.8 | E190: -174722.65 | F190: 0 | G190: No | H190: 451847 | I190: -174722.65
B191: 20180000173 | C191: ='Elenco residui'!C183 -> 0 | D191: ='Elenco residui'!D183-'Elenco residui'!E183 -> 67000 | E191: -107722.65 | F191: 0 | G191: No | H191: 451847 | I191: -107722.65
B192: 20180000174 | C192: ='Elenco residui'!C184 -> 0 | D192: ='Elenco residui'!D184-'Elenco residui'!E184 -> 3000 | E192: -104722.65 | F192: 0 | G192: No | H192: 451847 | I192: -104722.65
B193: 20180000175 | C193: ='Elenco residui'!C185 -> 0 | D193: ='Elenco residui'!D185-'Elenco residui'!E185 -> 7440 | E193: -97282.65 | F193: 0 | G193: No | H193: 451847 | I193: -97282.65
B194: 20180000176 | C194: ='Elenco residui'!C186 -> 0 | D194: ='Elenco residui'!D186-'Elenco residui'!E186 -> 2500 | E194: -94782.65 | F194: 0 | G194: No | H194: 451847 | I194: -94782.65
B195: 20180000177 | C195: ='Elenco residui'!C187 -> 0 | D195: ='Elenco residui'!D187-'Elenco residui'!E187 -> 3220 | E195: -91562.65 | F195: 0 | G195: No | H195: 451847 | I195: -91562.65
B196: 20180000178 | C196: ='Elenco residui'!C188 -> 0 | D196: ='Elenco residui'!D188-'Elenco residui'!E188 -> 3500 | E196: -88062.65 | F196: 0 | G196: No | H196: 451847 | I196: -88062.65
B197: 20180000179 | C197: ='Elenco residui'!C189 -> 0 | D197: ='Elenco residui'!D189-'Elenco residui'!E189 -> 610 | E197: -87452.65 | F197: 0 | G197: No | H197: 451847 | I197: -87452.65
B198: 20180000180 | C198: ='Elenco residui'!C190 -> 0 | D198: ='Elenco residui'!D190-'Elenco residui'!E190 -> 220 | E198: -87232.65 | F198: 0 | G198: No | H198: 451847 | I198: -87232.65
B199: 20180000181 | C199: ='Elenco residui'!C191 -> 0 | D199: ='Elenco residui'!D191-'Elenco residui'!E191 -> 1220 | E199: -86012.65 | F199: 0 | G199: No | H199: 451847 | I199: -86012.65
B200: 20180000182 | C200: ='Elenco residui'!C192 -> 0 | D200: ='Elenco residui'!D192-'Elenco residui'!E192 -> 12810 | E200: -73202.65 | F200: 0 | G200: No | H200: 451847 | I200: -73202.65
B201: 20180000183 | C201: ='Elenco residui'!C193 -> 0 | D201: ='Elenco residui'!D193-'Elenco residui'!E193 -> 3660 | E201: -69542.65 | F201: 0 | G201: No | H201: 451847 | I201: -69542.65
B202: 20180000184 | C202: ='Elenco residui'!C194 -> 0 | D202: ='Elenco residui'!D194-'Elenco residui'!E194 -> 3797.56 | E202: -65745.09 | F202: 0 | G202: No | H202: 451847 | I202: -65745.09
B203: 20180000185 | C203: ='Elenco residui'!C195 -> 0 | D203: ='Elenco residui'!D195-'Elenco residui'!E195 -> 3939.83 | E203: -61805.26 | F203: 0 | G203: No | H203: 451847 | I203: -61805.26
B204: 20180000186 | C204: ='Elenco residui'!C196 -> 0 | D204: ='Elenco residui'!D196-'Elenco residui'!E196 -> 8116.03 | E204: -53689.23 | F204: 0 | G204: No | H204: 451847 | I204: -53689.23
... 146 more rows
